bitfinex/quotes_BTCUSD_20220111
["timestamp","ask_amount","ask_price","bid_price","bid_amount"]
[1641912578773,0.120516,41496.0,41484.0,0.73932856]
[1641912578973,0.0482,41499.0,41494.0,0.28156651]
[1641912579170,0.035,41490.0,41488.0,0.00125826]
[1641912579368,0.035,41490.0,41489.0,1.37680401]
[1641912579574,0.035,41490.0,41489.0,1.42680401]
[1641912579771,0.0001,41490.0,41489.0,1.67680401]
[1641912579970,0.0001,41490.0,41489.0,1.72680401]
[1641912580170,0.0001,41490.0,41489.0,2.72893087]
[1641912580372,0.27063725,41504.0,41489.0,2.72893087]
[1641912580570,0.27063725,41504.0,41497.0,0.29423647]
[1641912580771,0.9298,41505.0,41496.0,0.00125119]
[1641912580972,0.32084632,41499.0,41496.0,0.00125119]
[1641912581171,0.32084632,41499.0,41497.0,0.031]
[1641912581371,0.004,41504.0,41497.0,0.031]
[1641912581826,0.004,41504.0,41499.0,0.31527381]
[1641912582426,0.004,41504.0,41499.0,0.41527381]
[1641912582625,0.28580851,41506.0,41499.0,0.46527381]
[1641912583025,0.28581037,41506.0,41499.0,0.31527381]
[1641912583225,0.28681037,41506.0,41499.0,0.36127381]
[1641912584028,0.28681039,41506.0,41499.0,0.36127381]
[1641912585129,0.28581039,41506.0,41499.0,0.36427381]
[1641912585338,0.9258345,41512.0,41501.0,1.3]
[1641912585597,0.2846,41522.0,41507.0,0.00124508]
[1641912585998,0.2846,41522.0,41514.0,0.00125848]
[1641912586395,0.27114513,41517.0,41514.0,0.34497613]
[1641912586597,0.0021,41523.0,41514.0,0.49497613]
[1641912586800,0.0021,41523.0,41521.0,0.00121068]
[1641912587199,0.0191,41523.0,41521.0,0.00121068]
[1641912587699,0.0191,41523.0,41522.0,0.875542]
[1641912587999,0.0191,41523.0,41522.0,0.375542]
[1641912588198,0.0191,41523.0,41514.0,0.056]
[1641912588397,0.0191,41523.0,41518.0,0.05]
[1641912588398,0.0021,41523.0,41518.0,0.05]
[1641912588797,0.0021,41523.0,41513.0,0.0482]
[1641912588997,0.4348122,41520.0,41514.0,0.7191116]
[1641912589228,0.4348122,41520.0,41518.0,0.005]
[1641912590430,0.334858,41519.0,41513.0,0.0482]
[1641912590626,0.4348122,41520.0,41512.0,0.00129036]
[1641912591026,0.4950322,41520.0,41512.0,0.00129036]
[1641912591326,0.00080895,41518.0,41512.0,0.04729036]
[1641912591525,0.29222668,41517.0,41512.0,0.04729036]
[1641912591726,0.29222668,41517.0,41512.0,0.37835497]
[1641912591925,0.29222668,41517.0,41512.0,0.47835497]
[1641912592326,0.00080895,41518.0,41512.0,0.47835497]
[1641912592534,0.00028116,41519.0,41512.0,0.48235497]
[1641912592535,0.00080893,41517.0,41512.0,0.48235497]
[1641912592729,0.00080893,41517.0,41513.0,0.375542]
[1641912593167,0.00080893,41517.0,41513.0,0.525542]
[1641912593768,0.00076274,41517.0,41513.0,0.525542]
[1641912594670,0.00076274,41517.0,41513.0,0.475542]
[1641912594868,0.00063531,41517.0,41513.0,0.475542]
[1641912595171,0.00063531,41517.0,41513.0,0.526542]
[1641912596469,0.00063531,41517.0,41513.0,0.475542]
[1641912597217,0.00063531,41517.0,41514.0,0.0005291]
[1641912597419,0.00061618,41517.0,41515.0,0.375542]
[1641912597616,0.00061618,41517.0,41515.0,0.475542]
[1641912597822,0.00061618,41517.0,41515.0,0.525542]
[1641912598020,0.00061618,41517.0,41516.0,1.62554531]
[1641912598219,0.00061618,41517.0,41516.0,2.50919148]
[1641912598721,0.00067229,41518.0,41516.0,2.18488387]
[1641912599019,0.00067229,41518.0,41517.0,1.79281316]
[1641912599519,0.00067229,41518.0,41517.0,1.89281316]
[1641912599720,0.0006723,41519.0,41517.0,1.89281316]
[1641912599919,0.0006723,41519.0,41517.0,1.575542]
[1641912600119,0.0006723,41519.0,41518.0,1.2]
[1641912600325,0.0006723,41519.0,41518.0,0.375542]
[1641912600575,0.0006723,41519.0,41518.0,0.4760711]
[1641912600775,0.3355303,41519.0,41518.0,0.0005291]
[1641912600974,0.94679072,41519.0,41518.0,0.0005291]
[1641912601173,0.94679072,41519.0,41518.0,0.0135291]
[1641912601577,0.99679072,41519.0,41518.0,0.0135291]
[1641912601774,0.99707188,41519.0,41518.0,0.0135291]
[1641912603377,0.99707188,41519.0,41518.0,0.0005291]
[1641912604077,0.3726313,41512.0,41510.0,0.0005291]
[1641912604324,1.16796875,41511.0,41510.0,0.0005291]
[1641912604530,1.26796875,41511.0,41510.0,0.0005291]
[1641912604724,1.1,41510.0,41509.0,3.473e-05]
[1641912604921,1.75405011,41510.0,41509.0,3.473e-05]
[1641912605121,0.3,41509.0,41494.0,0.00126511]
[1641912605320,0.31545127,41504.0,41494.0,0.00126511]
[1641912605528,0.383058,41503.0,41494.0,0.00126511]
[1641912605922,0.32519482,41502.0,41495.0,0.30532238]
[1641912606123,0.383058,41501.0,41494.0,0.00126511]
[1641912606724,0.0482,41501.0,41494.0,0.00126511]
[1641912607125,0.06025036,41498.0,41494.0,0.00126511]
[1641912607327,0.06025036,41498.0,41494.0,0.047]
[1641912607528,0.334858,41497.0,41494.0,0.047]
[1641912607726,0.61351879,41497.0,41494.0,0.047]
[1641912607968,0.334858,41497.0,41494.0,0.047]
[1641912608176,0.1084467,41501.0,41495.0,0.29596225]
[1641912608371,0.0482,41501.0,41495.0,0.29596225]
[1641912608774,0.0482,41501.0,41496.0,0.34989515]
[1641912608973,0.00028483,41503.0,41500.0,0.00127816]
[1641912609173,0.00028483,41503.0,41502.0,0.74590363]
[1641912609577,0.00028483,41503.0,41502.0,1.61522429]
[1641912609772,0.00028483,41503.0,41502.0,1.6164763]
[1641912609972,0.00028483,41503.0,41502.0,2.0164763]
[1641912610372,0.00022483,41503.0,41502.0,1.67269764]
[1641912610573,0.00022483,41503.0,41502.0,1.92201473]
[1641912610774,0.00022483,41503.0,41502.0,1.97201473]
[1641912610973,0.00022483,41503.0,41502.0,1.57201473]
[1641912611175,0.35926957,41510.0,41506.0,0.00062966]
[1641912611375,0.39509677,41509.0,41502.0,0.01625201]
[1641912611575,0.060239,41507.0,41502.0,0.015]
[1641912611828,0.334858,41506.0,41502.0,0.015]
[1641912612229,0.68708551,41503.0,41502.0,0.015]
[1641912612430,1.02194351,41503.0,41500.0,0.00085956]
[1641912612628,0.68708551,41503.0,41500.0,0.00085956]
[1641912612829,0.334858,41502.0,41500.0,0.00085956]
[1641912613030,0.334858,41502.0,41491.0,0.00248742]
[1641912613227,0.68708551,41503.0,41500.0,0.039]
[1641912613228,0.69208551,41503.0,41500.0,0.039]
[1641912613431,0.66153589,41502.0,41500.0,0.039]
[1641912613830,0.395109,41502.0,41500.0,0.039]
[1641912614028,0.39510755,41502.0,41500.0,0.039]
[1641912614429,0.39510755,41502.0,41499.0,0.00067243]
[1641912614829,0.99594492,41502.0,41499.0,0.00067243]
[1641912615331,1.06419692,41502.0,41499.0,0.025]
[1641912616173,1.00394492,41502.0,41499.0,0.025]
[1641912616375,0.7229072,41502.0,41499.0,0.025]
[1641912616574,0.7149072,41502.0,41498.0,0.00069349]
[1641912617483,0.0482,41501.0,41498.0,0.03869349]
[1641912617678,0.45537115,41500.0,41498.0,0.0387129]
[1641912617981,0.3482,41499.0,41498.0,0.0387129]
[1641912618178,0.683058,41499.0,41498.0,0.0387129]
[1641912618377,0.76910956,41499.0,41498.0,0.0387129]
[1641912618777,0.493314,41499.0,41498.0,0.0387129]
[1641912618976,0.493314,41499.0,41498.0,0.038]
[1641912619226,0.493314,41499.0,41496.0,0.00071291]
[1641912619418,0.39511283,41498.0,41496.0,0.00071291]
[1641912619817,0.66303328,41498.0,41496.0,0.00071291]
[1641912620019,0.72329128,41498.0,41496.0,0.00071291]
[1641912620217,0.66303328,41498.0,41495.0,0.00070837]
[1641912620422,0.060253,41497.0,41495.0,0.00070837]
[1641912620620,0.334858,41496.0,41489.0,0.00283389]
[1641912620821,0.06025483,41498.0,41493.0,0.44562401]
[1641912621421,0.06025483,41498.0,41493.0,0.54562401]
[1641912621620,0.04853483,41498.0,41490.0,0.3018708]
[1641912621820,0.10878483,41498.0,41491.0,0.375542]
[1641912622022,1.11364187,41504.0,41491.0,0.375542]
[1641912622023,0.9329,41504.0,41493.0,0.24680049]
[1641912622221,0.9329,41504.0,41495.0,0.00120908]
[1641912622421,0.289205,41517.0,41500.0,0.00125982]
[1641912622422,0.9005,41516.0,41500.0,0.00125982]
[1641912622622,0.334858,41515.0,41500.0,0.00125982]
[1641912622819,0.31879907,41511.0,41504.0,0.25165285]
[1641912623074,0.23905288,41506.0,41504.0,0.25165285]
[1641912623272,0.23905288,41506.0,41504.0,0.25865285]
[1641912623877,0.06022946,41512.0,41504.0,0.25988521]
[1641912624078,0.9005,41516.0,41511.0,0.27883145]
[1641912624274,0.00331857,41523.0,41511.0,0.27883145]
[1641912624477,0.00331857,41523.0,41514.0,0.00128654]
[1641912624478,0.0021,41523.0,41514.0,0.00128654]
[1641912624874,0.28341356,41521.0,41514.0,0.00128654]
[1641912625073,0.00082204,41516.0,41514.0,0.00128654]
[1641912625275,0.00082204,41516.0,41515.0,1.175542]
[1641912625475,0.00082204,41516.0,41515.0,1.50948807]
[1641912625676,0.00082204,41516.0,41515.0,2.21072286]
[1641912625875,0.00082204,41516.0,41515.0,2.31072286]
[1641912625876,2.04e-06,41516.0,41515.0,2.31072286]
[1641912626075,2.04e-06,41516.0,41515.0,2.35892286]
[1641912626273,0.00082206,41518.0,41515.0,2.35892286]
[1641912626477,0.00082206,41518.0,41517.0,1.95827213]
[1641912626728,0.00082206,41518.0,41517.0,2.05647213]
[1641912626921,0.00082206,41518.0,41517.0,2.15647213]
[1641912627422,0.0021,41523.0,41517.0,2.17347213]
[1641912627620,0.0021,41523.0,41522.0,1.35332289]
[1641912627821,0.0021,41523.0,41522.0,1.52684086]
[1641912628022,0.0021,41523.0,41522.0,1.62684086]
[1641912628221,0.0021,41523.0,41522.0,1.47684086]
[1641912628421,0.0021,41523.0,41522.0,1.62684086]
[1641912628722,0.0021,41523.0,41522.0,1.47684086]
[1641912628921,0.0021,41523.0,41522.0,1.62684086]
[1641912629124,0.0021,41523.0,41522.0,1.57684086]
[1641912629320,0.0021,41523.0,41522.0,1.64184086]
[1641912630125,0.0011,41528.0,41524.0,1.675542]
[1641912630327,0.0011,41528.0,41526.0,0.375542]
[1641912630576,0.001,41530.0,41529.0,1.3]
[1641912630777,0.001,41530.0,41529.0,1.723742]
[1641912630973,0.001,41530.0,41529.0,1.823742]
[1641912631374,0.0021,41535.0,41532.0,0.375542]
[1641912631576,0.0021,41535.0,41533.0,1.67678527]
[1641912631878,0.0021,41535.0,41534.0,1.725542]
[1641912632072,0.0021,41535.0,41534.0,1.825542]
[1641912632474,0.0021,41535.0,41534.0,0.525542]
[1641912632679,0.0021,41535.0,41534.0,0.375542]
[1641912632873,0.0021,41535.0,41529.0,0.0482]
[1641912633273,0.0021,41535.0,41534.0,0.004]
[1641912633773,0.40275756,41535.0,41534.0,0.004]
[1641912634423,0.73761556,41535.0,41534.0,0.004]
[1641912634619,0.40275756,41535.0,41534.0,0.004]
[1641912634920,0.30019794,41536.0,41527.0,0.27685979]
[1641912635121,0.06019552,41535.0,41527.0,0.27685979]
[1641912635318,0.06019552,41535.0,41534.0,0.004]
[1641912635518,0.0041,41536.0,41534.0,0.004]
[1641912636020,0.43016626,41536.0,41534.0,0.004]
[1641912636620,0.43016626,41536.0,41527.0,0.27685979]
[1641912636819,0.43016626,41536.0,41527.0,0.00122922]
[1641912637026,0.24701383,41535.0,41527.0,0.26915022]
[1641912637222,0.43016626,41536.0,41527.0,0.26915022]
[1641912637423,0.0041,41536.0,41527.0,0.27415022]
[1641912637624,0.0041,41536.0,41528.0,0.375542]
[1641912637822,0.0041,41536.0,41532.0,0.00121602]
[1641912638076,0.00081721,41534.0,41532.0,0.00121602]
[1641912638276,0.00081721,41534.0,41533.0,1.57669071]
[1641912638677,0.00081721,41534.0,41533.0,0.475542]
[1641912639279,0.3240199,41536.0,41533.0,0.112]
[1641912639477,0.79975939,41536.0,41533.0,0.012]
[1641912639684,0.00472353,41536.0,41533.0,0.012]
[1641912640079,0.00472353,41536.0,41534.0,0.375542]
[1641912640680,0.0041,41536.0,41534.0,0.375542]
[1641912640878,0.0041,41536.0,41531.0,0.00122536]
[1641912641279,0.0041,41536.0,41531.0,0.02122536]
[1641912641478,0.0041,41536.0,41532.0,0.375542]
[1641912641923,0.0041,41536.0,41533.0,0.00121026]
[1641912642123,0.0041,41536.0,41534.0,0.375542]
[1641912642522,0.0041,41536.0,41533.0,0.00121026]
[1641912642926,0.68870685,41536.0,41532.0,0.1]
[1641912643126,0.27894531,41535.0,41527.0,0.00127384]
[1641912643326,0.30481296,41528.0,41519.0,0.1]
[1641912643528,0.30481296,41528.0,41520.0,0.375542]
[1641912643725,0.05,41534.0,41519.0,0.10120158]
[1641912643928,0.06020077,41529.0,41521.0,0.39037044]
[1641912644128,0.27894531,41535.0,41521.0,0.81609287]
[1641912644427,0.00167533,41537.0,41524.0,0.00129518]
[1641912644626,0.00067688,41529.0,41528.0,1.13729457]
[1641912644829,0.00067688,41529.0,41528.0,1.97406556]
[1641912645027,0.00067688,41529.0,41528.0,2.07406556]
[1641912645473,0.00067688,41529.0,41528.0,2.09806556]
[1641912645670,0.00067688,41529.0,41528.0,2.37169912]
[1641912645870,0.0006769,41531.0,41528.0,1.349542]
[1641912646070,0.0006769,41531.0,41529.0,0.375542]
[1641912646270,0.0006769,41531.0,41528.0,0.124]
[1641912646571,0.0006769,41531.0,41524.0,0.00129518]
[1641912646773,0.0006769,41531.0,41526.0,0.53568426]
[1641912646973,0.0006769,41532.0,41527.0,0.375542]
[1641912647172,0.0006769,41532.0,41527.0,0.475542]
[1641912647376,0.0006769,41532.0,41527.0,0.80234793]
[1641912648171,0.00066127,41532.0,41527.0,0.80234793]
[1641912648973,0.0041,41536.0,41528.0,1.3]
[1641912649232,0.0041,41536.0,41529.0,0.375542]
[1641912649426,0.00066127,41532.0,41529.0,0.375542]
[1641912649629,0.00066127,41532.0,41531.0,0.0012224]
[1641912649829,0.00066127,41532.0,41531.0,1.2767644]
[1641912650030,0.00066127,41532.0,41531.0,1.3767644]
[1641912650628,0.0041,41536.0,41531.0,0.4767644]
[1641912650828,0.34102154,41536.0,41531.0,0.1]
[1641912651228,0.34102154,41536.0,41526.0,0.63568426]
[1641912651427,0.34102154,41536.0,41531.0,0.012]
[1641912651828,0.34168071,41536.0,41531.0,0.012]
[1641912652534,0.06019332,41535.0,41531.0,0.012]
[1641912652732,0.06019332,41535.0,41524.0,0.00192717]
[1641912653173,0.34168071,41536.0,41524.0,0.00192717]
[1641912653374,0.34168071,41536.0,41527.0,0.3305519]
[1641912653975,0.060195,41534.0,41527.0,0.3305519]
[1641912654175,0.06085414,41534.0,41527.0,0.4305519]
[1641912654373,0.06085414,41534.0,41528.0,0.375542]
[1641912654575,0.06085414,41534.0,41528.0,0.475542]
[1641912655375,0.06085507,41534.0,41528.0,0.518542]
[1641912656578,0.06085507,41534.0,41528.0,0.475542]
[1641912657422,0.06085507,41534.0,41528.0,0.501542]
[1641912658023,0.00066007,41534.0,41530.0,0.00129939]
[1641912658225,0.00066007,41534.0,41531.0,0.375542]
[1641912658424,0.00066007,41534.0,41532.0,0.466086]
[1641912658627,0.00066007,41534.0,41533.0,1.325542]
[1641912659025,0.00065981,41535.0,41533.0,1.425542]
[1641912659426,0.00065981,41535.0,41533.0,1.441542]
[1641912660227,0.00475982,41536.0,41533.0,1.441542]
[1641912660490,0.001,41538.0,41536.0,0.375542]
[1641912660686,0.01,41549.0,41540.0,0.375542]
[1641912660888,0.01,41549.0,41538.0,1.3]
[1641912660889,0.01,41549.0,41543.0,1.575542]
[1641912661087,0.01,41549.0,41543.0,2.01861254]
[1641912661285,0.01,41549.0,41543.0,3.20820461]
[1641912661483,0.01,41549.0,41543.0,3.28036661]
[1641912661684,0.01,41549.0,41543.0,3.27020461]
[1641912661987,0.01,41549.0,41547.0,0.375542]
[1641912662184,0.01,41549.0,41548.0,1.425542]
[1641912662585,0.01,41549.0,41548.0,1.525542]
[1641912662787,0.00263339,41554.0,41549.0,1.3]
[1641912663191,0.00263339,41554.0,41553.0,1.67677271]
[1641912663387,0.00263339,41554.0,41553.0,1.87497271]
[1641912663588,1.3923,41566.0,41553.0,2.22477271]
[1641912663888,1.3923,41566.0,41563.0,0.0999]
[1641912664088,0.42,41566.0,41563.0,0.0999]
[1641912664731,0.37546456,41565.0,41563.0,0.0999]
[1641912665029,0.6,41564.0,41561.0,0.0999]
[1641912665227,0.334858,41563.0,41561.0,0.0999]
[1641912665828,0.51533781,41563.0,41561.0,0.0999]
[1641912666428,0.18047981,41563.0,41561.0,0.0999]
[1641912666627,0.18047981,41563.0,41554.0,0.45673574]
[1641912666628,0.00029075,41562.0,41554.0,0.45673574]
[1641912666828,0.00029075,41562.0,41554.0,0.55673574]
[1641912667032,0.00029075,41562.0,41554.0,0.1]
[1641912667233,0.1804815,41559.0,41552.0,0.00071451]
[1641912667430,0.29938752,41557.0,41554.0,0.009]
[1641912667629,0.91114477,41555.0,41554.0,0.009]
[1641912667828,1.24600277,41555.0,41554.0,0.0001]
[1641912668073,1.34420277,41555.0,41554.0,0.1]
[1641912668276,1.39420277,41555.0,41554.0,0.1]
[1641912668475,0.5,41554.0,41552.0,0.00071448]
[1641912668671,0.5,41554.0,41552.0,0.00071445]
[1641912668672,0.984858,41553.0,41552.0,0.00071445]
[1641912668871,0.383058,41553.0,41552.0,0.00071445]
[1641912669272,0.30089635,41554.0,41552.0,0.00071445]
[1641912669473,0.038,41553.0,41552.0,0.00071445]
[1641912669976,0.038,41553.0,41550.0,0.00070609]
[1641912670876,0.06017866,41555.0,41550.0,0.00070609]
[1641912671075,0.06017866,41555.0,41550.0,0.42167565]
[1641912671278,0.00063145,41556.0,41553.0,0.00121157]
[1641912671477,0.011,41555.0,41553.0,0.00121157]
[1641912672123,0.28356607,41555.0,41550.0,0.52867565]
[1641912672323,0.25056607,41555.0,41552.0,0.00070608]
[1641912673530,0.00063759,41556.0,41552.0,0.019]
[1641912673726,0.00063759,41556.0,41555.0,0.00121157]
[1641912673925,0.00063759,41556.0,41555.0,1.67675357]
[1641912674125,0.00063759,41556.0,41555.0,1.77675357]
[1641912674626,0.00063761,41558.0,41555.0,1.77675357]
[1641912674828,0.00063761,41558.0,41556.0,0.45775158]
[1641912675030,0.00063761,41558.0,41557.0,0.375542]
[1641912675480,0.00063761,41558.0,41557.0,0.1]
[1641912675879,0.12031158,41559.0,41557.0,0.1]
[1641912676478,0.12031158,41559.0,41556.0,0.016]
[1641912676679,0.00028794,41558.0,41554.0,0.48856412]
[1641912676880,0.00028794,41558.0,41555.0,0.37679937]
[1641912677083,0.00028794,41558.0,41557.0,1.67679247]
[1641912677281,0.00028794,41558.0,41557.0,1.72679247]
[1641912677480,0.00028794,41558.0,41557.0,2.02679247]
[1641912677880,0.00028794,41558.0,41557.0,1.87679247]
[1641912678082,0.00063599,41560.0,41558.0,1.3]
[1641912678281,0.00063598,41560.0,41559.0,1.675542]
[1641912678480,0.00063598,41560.0,41559.0,1.785675]
[1641912678683,0.00063598,41560.0,41559.0,1.885675]
[1641912679529,0.000636,41562.0,41561.0,1.76066161]
[1641912679728,0.000636,41562.0,41561.0,2.13740723]
[1641912679926,0.000636,41562.0,41561.0,2.28740723]
[1641912680327,0.000636,41562.0,41561.0,2.09283782]
[1641912680526,0.000636,41562.0,41561.0,2.14283782]
[1641912680726,0.0011,41565.0,41561.0,2.14283782]
[1641912680727,0.00063642,41564.0,41561.0,2.14283782]
[1641912680927,0.00063642,41564.0,41562.0,0.68970083]
[1641912681127,0.00063642,41564.0,41563.0,1.67682513]
[1641912681335,0.00063642,41564.0,41563.0,1.82682513]
[1641912681530,6.42e-06,41564.0,41563.0,2.13514813]
[1641912681729,0.0011,41565.0,41563.0,2.13514813]
[1641912681934,6.44e-06,41566.0,41564.0,0.375542]
[1641912682127,0.0456125,41571.0,41564.0,0.375542]
[1641912682332,0.00454538,41572.0,41570.0,0.00122827]
[1641912682529,0.0521,41579.0,41572.0,1.3]
[1641912682828,0.0521,41579.0,41573.0,0.37677759]
[1641912683080,0.0521,41579.0,41574.0,0.375542]
[1641912683278,0.001,41587.0,41578.0,0.375542]
[1641912683480,0.001,41587.0,41584.0,0.00121944]
[1641912683886,0.001,41587.0,41586.0,0.525542]
[1641912684081,0.0011,41596.0,41587.0,1.675542]
[1641912684284,0.00249348,41594.0,41588.0,0.4277157]
[1641912684486,0.00249348,41594.0,41593.0,0.00125378]
[1641912684682,0.0011,41596.0,41595.0,0.33967455]
[1641912684881,0.0011,41596.0,41595.0,0.423742]
[1641912685084,0.0011,41596.0,41595.0,0.92568023]
[1641912685381,0.0002,41598.0,41597.0,0.375542]
[1641912685580,0.0002,41598.0,41597.0,0.523742]
[1641912686580,0.00048003,41598.0,41597.0,0.83907306]
[1641912686823,0.00048003,41598.0,41597.0,0.523742]
[1641912687424,0.32868343,41598.0,41597.0,0.1482]
[1641912687723,0.32868343,41598.0,41597.0,0.004]
[1641912687926,0.32868343,41598.0,41597.0,0.354]
[1641912688125,0.32868343,41598.0,41597.0,0.104]
[1641912688727,0.00048003,41598.0,41597.0,0.104]
[1641912688930,0.05048003,41598.0,41597.0,0.35]
[1641912689127,0.00048003,41598.0,41597.0,0.35]
[1641912689425,0.00048003,41598.0,41592.0,0.00210098]
[1641912689626,0.00048003,41598.0,41597.0,0.006]
[1641912690026,0.00048003,41598.0,41597.0,0.706]
[1641912690227,0.00048003,41598.0,41597.0,1.081542]
[1641912690472,0.00048003,41598.0,41597.0,1.181542]
[1641912690873,0.00048003,41598.0,41597.0,1.775542]
[1641912691374,0.00048003,41598.0,41597.0,1.175542]
[1641912691576,0.00048003,41598.0,41597.0,1.181542]
[1641912691773,0.00048003,41598.0,41597.0,1.42164061]
[1641912691973,0.00048003,41598.0,41597.0,1.181542]
[1641912692574,0.00038003,41598.0,41597.0,1.181542]
[1641912692774,0.00038003,41598.0,41597.0,1.175542]
[1641912693176,0.00038003,41598.0,41597.0,0.475542]
[1641912693375,0.00038003,41598.0,41597.0,0.1]
[1641912693577,0.00038003,41598.0,41597.0,0.004]
[1641912694233,0.26742291,41598.0,41597.0,0.004]
[1641912694623,0.57475245,41598.0,41597.0,0.004]
[1641912694823,0.57475245,41598.0,41592.0,0.00068473]
[1641912695023,0.57475245,41598.0,41592.0,0.00138895]
[1641912695024,0.060099,41596.0,41592.0,0.00138895]
[1641912695224,0.060099,41596.0,41592.0,0.00070422]
[1641912695624,0.060099,41596.0,41592.0,0.00570422]
[1641912696325,0.43460047,41596.0,41593.0,0.375542]
[1641912696527,0.43460047,41596.0,41592.0,0.00571775]
[1641912696528,0.63732933,41595.0,41592.0,0.00571775]
[1641912696828,0.69743592,41595.0,41592.0,0.00571775]
[1641912697025,0.29953986,41594.0,41592.0,0.00071775]
[1641912697224,0.27299758,41593.0,41592.0,0.00071775]
[1641912697424,0.32299758,41593.0,41592.0,0.00071775]
[1641912697627,0.32299758,41593.0,41592.0,0.00571775]
[1641912698075,0.05,41593.0,41592.0,0.00571775]
[1641912698273,0.005,41594.0,41592.0,0.00571775]
[1641912698876,0.72250215,41596.0,41592.0,0.00071775]
[1641912699077,0.72309759,41596.0,41591.0,0.00071776]
[1641912699482,0.120211,41594.0,41590.0,0.00071405]
[1641912699679,0.120211,41594.0,41591.0,0.004]
[1641912699879,0.05,41593.0,41591.0,0.004]
[1641912700082,0.8,41591.0,41590.0,0.00071405]
[1641912700284,0.75,41590.0,41566.0,0.58753982]
[1641912700484,0.060129,41582.0,41573.0,0.82929151]
[1641912700682,0.060129,41582.0,41575.0,0.00120016]
[1641912700883,0.060129,41582.0,41580.0,0.30359546]
[1641912701085,0.060129,41582.0,41581.0,0.375542]
[1641912701284,0.00059165,41596.0,41581.0,0.375542]
[1641912701483,0.44482169,41596.0,41585.0,0.4027561]
[1641912701736,0.02014,41585.0,41581.0,0.01274049]
[1641912701926,0.0002873,41589.0,41586.0,0.00129596]
[1641912702128,0.0002873,41589.0,41588.0,1.94122944]
[1641912702326,0.0002873,41589.0,41588.0,2.37010085]
[1641912702625,0.0002873,41589.0,41588.0,2.47010085]
[1641912703226,0.0001,41598.0,41593.0,0.31002418]
[1641912703423,0.0001,41598.0,41593.0,0.68034229]
[1641912703626,0.0001,41598.0,41595.0,0.28342058]
[1641912703824,0.0001,41598.0,41596.0,0.375542]
[1641912704024,0.0001,41598.0,41596.0,0.475542]
[1641912704227,0.00081749,41598.0,41597.0,1.62316552]
[1641912704428,0.011,41600.0,41598.0,1.675542]
[1641912704635,0.41601893,41615.0,41600.0,1.3]
[1641912704826,0.00108953,41618.0,41600.0,1.3]
[1641912705028,0.00108953,41618.0,41602.0,0.375542]
[1641912705231,0.00108953,41618.0,41604.0,0.333699]
[1641912705479,0.01115351,41625.0,41618.0,0.01045678]
[1641912705480,0.1323112,41621.0,41618.0,0.01045678]
[1641912705678,0.0297904,41632.0,41618.0,0.01045678]
[1641912705881,0.0297904,41632.0,41620.0,0.00124332]
[1641912705882,0.0167904,41632.0,41620.0,0.00124332]
[1641912706079,0.0167904,41632.0,41631.0,0.00123117]
[1641912706276,0.0167904,41632.0,41631.0,1.34943117]
[1641912706477,0.17024118,41636.0,41632.0,1.555842]
[1641912706777,0.001,41637.0,41635.0,0.332523]
[1641912706977,0.0031,41641.0,41635.0,0.332523]
[1641912707185,0.0031,41641.0,41634.0,0.375542]
[1641912707186,0.0356811,41647.0,41636.0,0.3768293]
[1641912707380,0.0356811,41647.0,41643.0,0.00123064]
[1641912707581,0.012306,41648.0,41646.0,0.374399]
[1641912707781,0.0038465,41650.0,41647.0,0.374399]
[1641912707983,0.0038465,41650.0,41647.0,0.87566856]
[1641912708180,0.0003917,41657.0,41649.0,0.3756793]
[1641912708381,0.09999999,41672.0,41653.0,0.324399]
[1641912708580,0.1197,41668.0,41656.0,0.00125152]
[1641912708980,0.1197,41668.0,41666.0,0.00121082]
[1641912709238,0.11848918,41666.0,41661.0,0.00124954]
[1641912709428,0.05318848,41671.0,41667.0,0.3062746]
[1641912709630,0.01740596,41671.0,41665.0,0.374259]
[1641912709833,0.01240596,41671.0,41670.0,1.80122105]
[1641912710027,0.01240596,41671.0,41670.0,2.52374542]
[1641912710227,0.01240596,41671.0,41670.0,2.68371742]
[1641912710429,0.01240596,41671.0,41670.0,3.05215106]
[1641912710728,0.5158665,41679.0,41670.0,3.05215106]
[1641912710938,0.001,41675.0,41674.0,0.302419]
[1641912711126,0.001,41675.0,41674.0,0.450619]
[1641912711528,0.007,41675.0,41674.0,0.456619]
[1641912711727,0.007,41675.0,41674.0,1.256619]
[1641912711930,0.007,41675.0,41674.0,0.456619]
[1641912712334,0.007,41675.0,41674.0,0.356619]
[1641912712729,0.007,41675.0,41674.0,0.0542]
[1641912712988,0.92831806,41675.0,41674.0,0.0482]
[1641912713188,0.001,41675.0,41674.0,0.0482]
[1641912713589,0.0078762,41682.0,41679.0,1.3]
[1641912713789,0.00153346,41685.0,41681.0,0.574159]
[1641912713989,0.00153346,41685.0,41684.0,1.324159]
[1641912714188,0.0207521,41695.0,41684.0,1.324159]
[1641912714189,0.01800096,41688.0,41685.0,1.3]
[1641912714492,0.0207521,41695.0,41690.0,0.0012166]
[1641912714689,0.0207521,41695.0,41692.0,0.059942]
[1641912714995,0.0207521,41695.0,41693.0,0.422359]
[1641912715389,0.0207521,41695.0,41690.0,0.05]
[1641912715390,0.84999999,41694.0,41690.0,0.05]
[1641912715590,0.374159,41693.0,41690.0,0.05]
[1641912715789,0.1406791,41695.0,41690.0,0.05]
[1641912715991,0.38050316,41692.0,41690.0,0.05]
[1641912716590,0.059958,41693.0,41690.0,0.05]
[1641912716834,2e-06,41692.0,41691.0,0.59489973]
[1641912717031,0.00032285,41694.0,41691.0,0.47959319]
[1641912717231,0.00032285,41694.0,41692.0,0.374159]
[1641912717430,0.00032285,41694.0,41693.0,0.0442]
[1641912717634,0.00032285,41694.0,41693.0,0.818359]
[1641912718231,0.34020618,41695.0,41693.0,0.818359]
[1641912718232,0.059955,41697.0,41694.0,0.374159]
[1641912718431,0.059955,41697.0,41693.0,0.1]
[1641912718629,0.059955,41697.0,41694.0,0.374159]
[1641912718630,0.00064844,41696.0,41694.0,0.374159]
[1641912718830,0.00064844,41696.0,41695.0,0.90924552]
[1641912719032,0.00064844,41696.0,41695.0,1.38340452]
[1641912719230,0.00064844,41696.0,41695.0,0.75390041]
[1641912719431,0.00064844,41696.0,41695.0,0.374159]
[1641912719630,0.00064844,41696.0,41695.0,0.002]
[1641912719835,0.00064846,41698.0,41695.0,0.002]
[1641912720471,0.00064846,41698.0,41696.0,0.44845434]